fUST/lending_fUST_20251114
["ID","MTS","AMOUNT","RATE_DAILY","PERIOD"]
[393941223,1763118631789,-5000.0,0.00019317,2]
[393941224,1763118631800,-939.0,0.00019317,2]
[393941225,1763118631811,-483.67,0.00019783,30]
[393941226,1763118631821,-206.20309081,0.00019796,2]
[393941227,1763118631830,-300.0,0.00019872,2]
[393941228,1763118631840,-300.0,0.00019872,2]
[393941229,1763118631850,-1200.0,0.00019872,2]
[393941230,1763118631860,-300.0,0.00019872,2]
[393941231,1763118631869,-300.0,0.00019872,2]
[393941232,1763118631880,-50000.0,0.00019873,2]
[393941233,1763118631890,-500.0,0.00019873,2]
[393941234,1763118631899,-500.0,0.00019873,2]
[393941235,1763118631908,-500.0,0.00019873,2]
[393941236,1763118631918,-500.0,0.00019896,2]
[393941237,1763118631928,-500.0,0.00019896,2]
[393941238,1763118631937,-638.87645337,0.00019896,2]
[393941239,1763118631946,-500.0,0.00019896,2]
[393941240,1763118631956,-500.0,0.00019896,2]
[393941241,1763118631965,-500.0,0.00019896,2]
[393941242,1763118631974,-500.0,0.00019896,2]
[393941243,1763118631983,-500.0,0.00019896,2]
[393941244,1763118631992,-638.87645337,0.00019896,2]
[393941245,1763118632001,-500.0,0.00019896,2]
[393941246,1763118632010,-476.80882197,0.00019896,2]
[393941247,1763118632029,-23.19117803,0.00019896,2]
[393941248,1763118632039,-500.0,0.00019896,2]
[393941249,1763118632048,-500.0,0.00019896,2]
[393941250,1763118632057,-417.50882197,0.00019896,2]
[393941251,1763118632069,-82.49117803,0.00019896,2]
[393941252,1763118632078,-542.8706379,0.00019896,2]
[393941261,1763118637536,-96.00581547,0.00019896,2]
[393941262,1763118637546,-349.05135438,0.00019896,2]
[393941263,1763118637556,-638.87645337,0.00019896,2]
[393941264,1763118637565,-370.03137678,0.00019896,2]
[393941265,1763118637588,-129.96862322,0.00019896,2]
[393941266,1763118637598,-500.0,0.00019896,2]
[393941267,1763118637607,-500.0,0.00019896,2]
[393941268,1763118637616,-212.49083861,0.00019896,2]
[393941269,1763118637626,-500.0,0.00019896,2]
[393941270,1763118637635,-357.26668721,0.00019896,2]
[393941271,1763118637647,-281.60976616,0.00019896,2]
[393941272,1763118637657,-218.39023384,0.00019896,2]
[393941301,1763118639747,-281.60976616,0.00019896,2]
[393941302,1763118639757,-49.7269835,0.00019896,2]
[393941303,1763118639974,-3e-08,0.00019896,2]
[393941305,1763118639985,-589.14946984,0.00019896,2]
[393941307,1763118639995,-500.0,0.00019896,2]
[393941310,1763118640004,-240.12386148,0.00019896,2]
[393941312,1763118640013,-500.0,0.00019896,2]
[393941314,1763118640022,-638.87645337,0.00019896,2]
[393941316,1763118640031,-500.0,0.00019896,2]
[393941318,1763118640041,-550.40363829,0.00019896,2]
[393941320,1763118640050,-638.87645337,0.00019896,2]
[393941322,1763118640060,-500.0,0.00019896,2]
[393941324,1763118640069,-638.87645337,0.00019896,2]
[393941326,1763118640078,-638.87645337,0.00019896,2]
[393941328,1763118640087,-500.0,0.00019896,2]
[393941330,1763118640095,-638.87645337,0.00019896,2]
[393941332,1763118640104,-638.87645337,0.00019896,2]
[393941334,1763118640114,-320.67035255,0.00019896,2]
[393941336,1763118640123,-638.87645337,0.00019896,2]
[393941338,1763118640131,-638.87645337,0.00019896,2]
[393941340,1763118640140,-500.0,0.00019896,2]
[393941342,1763118640149,-638.87645337,0.00019896,2]
[393941344,1763118640158,-638.87645337,0.00019896,2]
[393941346,1763118640167,-638.87645337,0.00019896,2]
[393941348,1763118640175,-638.87645337,0.00019896,2]
[393941350,1763118640185,-638.87645337,0.00019896,2]
[393941351,1763118640194,-638.87645337,0.00019896,2]
[393941353,1763118640202,-638.87645337,0.00019896,2]
[393941355,1763118640211,-638.87645337,0.00019896,2]
[393941357,1763118640220,-638.87645337,0.00019896,2]
[393941359,1763118640229,-638.87645337,0.00019896,2]
[393941361,1763118640239,-440.54072084,0.00019896,2]
[393941364,1763118640250,-198.33573253,0.00019896,2]
[393941366,1763118640259,-638.87645337,0.00019896,2]
[393941367,1763118640268,-638.87645337,0.00019896,2]
[393941369,1763118640278,-638.87645337,0.00019896,2]
[393941371,1763118640287,-638.87645337,0.00019896,2]
[393941373,1763118640296,-638.87645337,0.00019896,2]
[393941375,1763118640305,-638.87645337,0.00019896,2]
[393941377,1763118640314,-638.87645337,0.00019896,2]
[393941379,1763118640323,-638.87645337,0.00019896,2]
[393941381,1763118640331,-638.87645337,0.00019896,2]
[393941383,1763118640340,-638.87645337,0.00019896,2]
[393941385,1763118640349,-638.87645337,0.00019896,2]
[393941387,1763118640358,-638.87645337,0.00019896,2]
[393941389,1763118640367,-638.87645337,0.00019896,2]
[393941391,1763118640376,-638.87645337,0.00019896,2]
[393941393,1763118640386,-638.87645337,0.00019896,2]
[393941395,1763118640395,-638.87645337,0.00019896,2]
[393941397,1763118640404,-638.87645337,0.00019896,2]
[393941399,1763118640413,-638.87645337,0.00019896,2]
[393941401,1763118640422,-638.87645337,0.00019896,2]
[393941403,1763118640431,-638.87645337,0.00019896,2]
[393941405,1763118640440,-638.87645337,0.00019896,2]
[393941407,1763118640449,-638.87645337,0.00019896,2]
[393941409,1763118640458,-638.87645337,0.00019896,2]
[393941411,1763118640468,-638.87645337,0.00019896,2]
[393941413,1763118640477,-638.87645337,0.00019896,2]
[393941415,1763118640486,-638.87645337,0.00019896,2]
[393941417,1763118640495,-638.87645337,0.00019896,2]
[393941430,1763118640602,-638.87645337,0.00019896,2]
[393941432,1763118640612,-638.87645337,0.00019896,2]
[393941434,1763118640622,-638.87645337,0.00019896,2]
[393941436,1763118640631,-638.87645337,0.00019896,2]
[393941438,1763118640640,-638.87645337,0.00019896,2]
[393941440,1763118640650,-638.87645337,0.00019896,2]
[393941442,1763118640659,-628.89400878,0.00019896,2]
[393941444,1763118640668,-628.89400878,0.00019896,2]
[393941446,1763118640677,-628.89400878,0.00019896,2]
[393941448,1763118640686,-628.89400878,0.00019896,2]
[393941450,1763118640695,-628.89400878,0.00019896,2]
[393941452,1763118640704,-628.89400878,0.00019896,2]
[393941454,1763118640714,-628.89400878,0.00019896,2]
[393941456,1763118640723,-628.89400878,0.00019896,2]
[393941458,1763118640732,-628.89400878,0.00019896,2]
[393941460,1763118640741,-628.89400878,0.00019896,2]
[393941462,1763118640750,-628.89400878,0.00019896,2]
[393941464,1763118640759,-628.89400878,0.00019896,2]
[393941466,1763118640769,-628.89400878,0.00019896,2]
[393941468,1763118640779,-628.89400878,0.00019896,2]
[393941470,1763118640788,-628.89400878,0.00019896,2]
[393941472,1763118640798,-628.89400878,0.00019896,2]
[393941474,1763118640808,-628.89400878,0.00019896,2]
[393941476,1763118640820,-628.89400878,0.00019896,2]
[393941478,1763118640829,-628.89400878,0.00019896,2]
[393941480,1763118640838,-628.89400878,0.00019896,2]
[393941482,1763118640847,-628.89400878,0.00019896,2]
[393941483,1763118640858,-628.89400878,0.00019896,2]
[393941485,1763118640867,-628.89400878,0.00019896,2]
[393941487,1763118640876,-628.89400878,0.00019896,2]
[393941489,1763118640889,-628.89400878,0.00019896,2]
[393941491,1763118640898,-628.89400878,0.00019896,2]
[393941493,1763118640909,-628.89400878,0.00019896,2]
[393941495,1763118640918,-628.89400878,0.00019896,2]
[393941497,1763118640928,-628.89400878,0.00019896,2]
[393941499,1763118640938,-628.89400878,0.00019896,2]
[393941501,1763118640948,-628.89400878,0.00019896,2]
[393941503,1763118640958,-628.89400878,0.00019896,2]
[393941505,1763118640967,-1200.0,0.00019896,2]
[393941507,1763118640977,-699.398184,0.00019897,2]
[393941509,1763118640987,-300.0,0.00019902,2]
[393941511,1763118640996,-300.0,0.00019902,2]
[393941513,1763118641005,-300.0,0.00019902,2]
[393941515,1763118641013,-300.0,0.00019902,2]
[393941517,1763118641023,-300.0,0.00019902,2]
[393941519,1763118641033,-300.0,0.00019902,2]
[393941521,1763118641042,-300.0,0.00019902,2]
[393941523,1763118641051,-300.0,0.00019902,2]
[393941525,1763118641060,-300.0,0.00019902,2]
[393941527,1763118641069,-300.0,0.00019902,2]
[393941529,1763118641078,-300.0,0.00019902,2]
[393941531,1763118641087,-300.0,0.00019902,2]
[393941533,1763118641096,-300.0,0.00019902,2]
[393941535,1763118641105,-300.0,0.00019902,2]
[393941537,1763118641114,-300.0,0.00019902,2]
[393941538,1763118641123,-1234.82005527,0.00020046,2]
[393941540,1763118641132,-800.0,0.00020196,2]
[393941542,1763118641141,-600.0,0.00020299,2]
[393941544,1763118641150,-1000.0,0.00020421,2]
[393941546,1763118641159,-619.15661723,0.00020421,2]
[393941548,1763118641168,-239.09257445,0.00020815,2]
[393941550,1763118641178,-1500.0,0.00020968,2]
[393941552,1763118641187,-368.67120118,0.00021203,2]
[393941554,1763118641196,-4854.57864326,0.00021228,2]
[393941556,1763118641204,-621.256316,0.00021245,2]
[393941558,1763118641214,-1824.75289762,0.00021363,2]
[393941560,1763118641223,-3166.05531501,0.00021417,2]
[393941562,1763118641231,-1740.53293302,0.00021418,2]
[393941564,1763118641240,-4971.78451302,0.00021418,2]
[393941566,1763118641250,-1244.19031857,0.00021418,2]
[393941568,1763118641259,-2799.42821679,0.00021418,2]
[393941570,1763118641268,-2000.0,0.00021516,2]
[393941572,1763118641277,-410.09539648,0.00021542,2]
[393941573,1763118641289,-1824.75289762,0.00021616,2]
[393941576,1763118641298,-411.69419331,0.00021641,2]
[393941578,1763118641311,-8.30580669,0.00021641,2]
[393941580,1763118641319,-500.0,0.00021673,2]
[393941582,1763118641329,-153.32,0.00021673,2]
[393941584,1763118641338,-153.32,0.00021673,2]
[393941586,1763118641347,-153.3,0.00021673,2]
[393941588,1763118641356,-1824.75289762,0.00021674,2]
[393941590,1763118641366,-1680.0,0.00021745,2]
[393941592,1763118641375,-136.01458475,0.00021759,2]
[393941661,1763118643001,-1688.15574756,0.00019697,2]
[393941662,1763118643011,-887.15701806,0.00019697,2]
[393941663,1763118643023,-2424.68723438,0.00019697,2]
[393941664,1763118643033,-2314.04344538,0.00021759,2]
[393941674,1763118646059,-7754.79971712,0.00021759,2]
[393941675,1763118646070,-263.90423775,0.00021773,2]
[393941676,1763118646080,-500.0,0.00021873,2]
[393941677,1763118646089,-470.26798814,0.00021873,2]
[393941678,1763118646100,-500.0,0.00021873,2]
[393941679,1763118646110,-3166.05531501,0.00021891,2]
[393941680,1763118646120,-746.54372879,0.0002192,2]
[393941681,1763118646129,-3166.05531501,0.00021949,2]
[393941682,1763118646138,-500.0,0.00021973,2]
[393941683,1763118646147,-389.85619046,0.00021973,2]
[393941684,1763118646157,-500.0,0.00021973,2]
[393941685,1763118646165,-1139.46255593,0.00022,2]
[393941686,1763118646175,-367.0,0.00022,2]
[393941687,1763118646184,-10331.76648755,0.0002201,2]
[393941688,1763118646193,-2500.0,0.00022064,2]
[393941689,1763118646203,-500.0,0.000221,2]
[393941690,1763118646212,-500.0,0.000221,2]
[393941691,1763118646221,-502.9746864,0.000221,2]
[393941692,1763118646230,-500.0,0.000221,2]
[393941693,1763118646239,-500.0,0.000221,2]
[393941694,1763118646248,-500.0,0.000221,2]
[393941695,1763118646257,-500.0,0.000221,2]
[393941696,1763118646266,-500.0,0.000221,2]
[393941697,1763118646275,-500.0,0.000221,2]
[393941698,1763118646287,-1824.75289762,0.0002211,2]
[393941699,1763118646295,-367.0,0.00022192,7]
[393941700,1763118646305,-1824.75289764,0.00022298,2]
[393941701,1763118646314,-720.0,0.00022329,20]
[393941702,1763118646323,-4068.89,0.000224,7]
[393941703,1763118646333,-3166.05531503,0.0002241,2]
[393941704,1763118646342,-497.21368798,0.00022521,2]
[393941705,1763118646352,-379.80723679,0.00022521,2]
[393941706,1763118646361,-411.37519729,0.00022573,2]
[393941707,1763118646370,-2970.27219184,0.00022578,2]
[393941708,1763118646380,-163.27,0.000226,7]
[393941709,1763118646390,-175.71450754,0.00022612,2]
[393941710,1763118646401,-523.06834137,0.00022648,2]
[393941711,1763118646410,-1000.0,0.00022648,2]
[393941712,1763118646420,-514.58845881,0.00022648,2]
[393941713,1763118646430,-1000.0,0.00022648,2]
[393941714,1763118646439,-1000.0,0.00022648,2]
[393941715,1763118646449,-160.0,0.000227,2]
[393941716,1763118646459,-7110.89888972,0.0002277,2]
[393941717,1763118646469,-275.56432309,0.00022815,2]
[393941718,1763118646478,-272.84678656,0.00022853,2]
[393941719,1763118646488,-367.0,0.00023014,7]
[393941720,1763118646497,-299.0,0.00023118,2]
[393941721,1763118646507,-1500.0,0.00023196,2]
[393941722,1763118646517,-1500.0,0.00023196,2]
[393941723,1763118646526,-1500.0,0.00023196,2]
[393941724,1763118646538,-500.0,0.00023229,2]
[393941725,1763118646547,-614.28535932,0.00023229,2]
[393941726,1763118646557,-500.0,0.00023229,2]
[393941727,1763118646571,-164.69928262,0.00023229,2]
[393941728,1763118646591,-260.0,0.00023248,2]
[393941729,1763118646606,-500.0,0.000234,2]
[393941730,1763118646616,-500.0,0.000234,2]
[393941731,1763118646626,-179.91445854,0.00023521,2]
[393941732,1763118646636,-587.0,0.00023568,2]
[393941733,1763118646646,-500.0,0.00023664,2]
[393941734,1763118646656,-500.0,0.0002368,2]
[393941735,1763118646667,-500.0,0.0002368,2]
[393941736,1763118646677,-501.9660549,0.0002368,2]
[393941737,1763118646687,-500.0,0.0002368,2]
[393941738,1763118646696,-500.0,0.0002368,2]
[393941739,1763118646706,-2000.0,0.00023744,2]
[393941740,1763118646716,-1515.16322027,0.00023744,2]
[393941741,1763118646726,-1000.0,0.00023777,2]
[393941742,1763118646735,-1000.0,0.00023777,2]
[393941743,1763118646745,-2351.0,0.00023795,2]
[393941744,1763118646755,-360.0,0.00023796,2]
[393941745,1763118646764,-1000.0,0.00023948,2]
[393941746,1763118646774,-1000.0,0.00023948,2]
[393941747,1763118646784,-500.0,0.00023973,2]
[393941748,1763118646798,-500.0,0.00023973,2]
[393941749,1763118646807,-500.0,0.00023973,2]
[393941750,1763118646821,-500.0,0.00023973,2]
[393941751,1763118646830,-500.0,0.00023973,2]
[393941752,1763118646839,-500.0,0.00023973,2]
[393941753,1763118646848,-500.0,0.00023973,2]
[393941754,1763118646858,-500.0,0.00023973,2]
[393941755,1763118646868,-500.0,0.00023973,2]
[393941756,1763118646877,-500.0,0.00023973,2]
[393941757,1763118646889,-500.0,0.00023973,2]
[393941758,1763118646898,-500.0,0.00023973,2]
[393941759,1763118646907,-500.0,0.00023973,2]
[393941760,1763118646916,-77014.53224073,0.0002399,2]
[393941761,1763118646925,-151.0,0.0002399,2]
[393941762,1763118646934,-274.91,0.00024,14]
[393941763,1763118646943,-10331.76648753,0.00024067,2]
[393941764,1763118646951,-914.47210687,0.00024091,2]
[393941765,1763118646961,-371.0,0.00024164,7]
[393941766,1763118646969,-1000.0,0.00024228,2]
[393941767,1763118646979,-1000.0,0.00024228,2]
[393941768,1763118646987,-1000.0,0.00024228,2]
[393941769,1763118646996,-1500.0,0.00024325,2]
[393941770,1763118647005,-1524.32488412,0.00024325,2]
[393941771,1763118647014,-460.0,0.00024344,2]
[393941772,1763118647023,-1094.87371572,0.00024496,2]
[393941773,1763118647032,-1417.88563569,0.00024496,2]
[393941774,1763118647043,-500.0,0.00024521,2]
[393941775,1763118647052,-1000.0,0.00024521,2]
[393941776,1763118647061,-1000.0,0.00024521,2]
[393941777,1763118647070,-1000.0,0.00024521,2]
[393941778,1763118647079,-911.5194586,0.00024521,2]
[393941779,1763118647089,-505.40395855,0.00024521,2]
[393941780,1763118647098,-1000.0,0.00024521,2]
[393941781,1763118647107,-1000.0,0.00024521,2]
[393941782,1763118647117,-1000.0,0.00024521,2]
[393941783,1763118647126,-1000.0,0.00024521,2]
[393941784,1763118647136,-435.26248092,0.00024521,2]
[393941785,1763118647145,-1000.0,0.00024521,2]
[393941786,1763118647154,-864.0,0.00024562,20]
[393941787,1763118647163,-151.0,0.000247,6]
[393941788,1763118647172,-213.460518,0.00024727,2]
[393941789,1763118647181,-2146.0,0.00024732,2]
[393941790,1763118647190,-651.39428571,0.00024776,2]
[393941791,1763118647199,-1500.0,0.00024776,2]
[393941792,1763118647208,-1500.0,0.00024776,2]
[393941793,1763118647217,-151.0,0.00024795,2]
[393941794,1763118647227,-151.0,0.00024795,2]
[393941795,1763118647236,-151.0,0.00024795,2]
[393941796,1763118647245,-500.0,0.00024795,2]
[393941797,1763118647255,-152.12052086,0.00024795,2]
[393941798,1763118647344,-152.63239838,0.00024795,2]
[393941799,1763118647354,-151.0,0.00024795,2]
[393941800,1763118647365,-151.0,0.00024795,2]
[393941801,1763118647374,-312.03607173,0.00024815,2]
[393941802,1763118647383,-500.0,0.00024822,2]
[393941803,1763118647392,-151.0,0.00024822,2]
[393941804,1763118647401,-153.16356868,0.00024822,2]
[393941805,1763118647410,-500.0,0.0002485,2]
[393941806,1763118647419,-288.34787394,0.0002485,2]
[393941807,1763118647428,-500.0,0.00024873,2]
[393941808,1763118647437,-500.0,0.00024877,2]
[393941809,1763118647447,-560.0,0.00024892,2]
[393941810,1763118647456,-195159.869666,0.000249,2]
[393941811,1763118647466,-527.21110654,0.00024905,2]
[393941812,1763118647474,-500.0,0.00024973,2]
[393941813,1763118647483,-500.0,0.00024973,2]
[393941814,1763118647492,-151.0,0.00025,19]
[393941815,1763118647502,-27879.9813808,0.00025058,2]
[393941816,1763118647511,-1500.0,0.00025068,2]
[393941817,1763118647520,-1500.0,0.00025068,2]
[393941818,1763118647529,-962.91231556,0.00025068,2]
[393941819,1763118647540,-1500.0,0.00025068,2]
[393941820,1763118647550,-1500.0,0.00025068,2]
[393941821,1763118647558,-1500.0,0.00025068,2]
[393941822,1763118647568,-1500.0,0.00025068,2]
[393941823,1763118647577,-1032.27303584,0.00025068,2]
[393941824,1763118647586,-224.103,0.000252,9]
[393941825,1763118647595,-4068.89,0.000253,7]
[393941826,1763118647604,-2000.0,0.00025324,2]
[393941827,1763118647613,-1145.84322088,0.00025324,2]
[393941828,1763118647623,-151.0,0.000254,18]
[393941829,1763118647632,-244.72122097,0.00025421,2]
[393941830,1763118647641,-660.0,0.0002544,2]
[393941831,1763118647650,-1000.0,0.00025521,2]
[393941832,1763118647659,-1070.81139116,0.00025616,2]
[393941833,1763118647668,-1099.25555679,0.00025616,2]
[393941834,1763118647677,-1869.65918081,0.00025616,2]
[393941835,1763118647686,-2000.0,0.00025616,2]
[393941836,1763118647695,-2000.0,0.00025616,2]
[393941837,1763118647704,-7110.89888972,0.00025644,2]
[393941838,1763118647713,-823.0,0.00025666,2]
[393941839,1763118647722,-151.0,0.000257,12]
[393941840,1763118647731,-367.0,0.00025775,7]
[393941841,1763118647740,-553.60959209,0.00025833,2]
[393941842,1763118647750,-760.0,0.00025988,2]
[393941843,1763118647758,-240.0,0.00026,2]
[393941844,1763118647768,-27879.9813808,0.00026017,2]
[393941845,1763118647777,-500.0,0.00026027,2]
[393941846,1763118647787,-500.0,0.00026027,2]
[393941847,1763118647796,-500.0,0.00026027,2]
[393941848,1763118647805,-500.0,0.00026027,2]
[393941849,1763118647818,-500.0,0.00026027,2]
[393941850,1763118647827,-500.0,0.00026027,2]
[393941851,1763118647836,-500.0,0.00026027,2]
[393941852,1763118647846,-500.0,0.00026027,2]
[393941853,1763118647855,-500.0,0.00026027,2]
[393941854,1763118647864,-500.0,0.00026027,2]
[393941855,1763118647873,-500.0,0.00026027,2]
[393941856,1763118647882,-500.0,0.00026027,2]
[393941857,1763118647894,-500.0,0.00026027,2]
[393941858,1763118647903,-500.0,0.00026027,2]
[393941859,1763118647914,-500.0,0.00026027,2]
[393941860,1763118647924,-500.0,0.00026027,2]
[393941861,1763118647934,-500.0,0.00026027,2]
[393941862,1763118647943,-500.0,0.00026027,2]
[393941863,1763118647952,-500.0,0.00026027,2]
[393941864,1763118647961,-500.0,0.00026027,2]
[393941865,1763118647971,-500.0,0.00026027,2]
[393941866,1763118647980,-500.0,0.00026027,2]
[393941867,1763118647989,-543.74456669,0.00026027,2]
[393941868,1763118647998,-3292.0,0.00026038,2]
[393941869,1763118648007,-500.0,0.00026054,2]
[393941870,1763118648016,-1500.0,0.00026068,2]
[393941871,1763118648025,-500.0,0.00026082,2]
[393941872,1763118648034,-210.5257945,0.00026093,2]
[393941873,1763118648044,-500.0,0.00026109,2]
[393941874,1763118648053,-10331.76648753,0.00026125,2]
[393941875,1763118648063,-629.01043842,0.00026137,2]
[393941876,1763118648072,-2500.0,0.00026164,2]
[393941877,1763118648080,-2500.0,0.00026164,2]
[393941878,1763118648089,-274.91,0.000262,14]
[393941879,1763118648098,-5888.0,0.00026549,2]
[393941880,1763118648107,-151.0,0.000266,20]
[393941881,1763118648116,-1516.17204015,0.00026616,2]
[393941882,1763118648125,-668.46854,0.00026676,2]
[393941883,1763118648133,-1500.0,0.00026712,2]
[393941884,1763118648142,-3000.0,0.00026712,2]
[393941885,1763118648151,-348.50782038,0.00026815,2]
[393941886,1763118648160,-176.0,0.000269,2]
[393941887,1763118648169,-200.0,0.00026999,2]
[393941888,1763118648177,-33858.84563059,0.00027,2]
[393941889,1763118648186,-58736.96545781,0.00027,30]
[393941890,1763118648194,-600.0,0.00027,14]
[393941891,1763118648203,-400.38245665,0.00027,30]
[393941892,1763118648212,-160.0,0.00027,30]
[393941893,1763118648220,-300.650615,0.00027,2]
[393941894,1763118648229,-1000.0,0.00027018,30]
[393941895,1763118648238,-1012.7176188,0.00027123,3]
[393941896,1763118648247,-313.62361752,0.0002726,2]
[393941897,1763118648256,-2184.03306917,0.0002727,2]
[393941898,1763118648266,-367.0,0.00027386,7]
[393941899,1763118648275,-991.17378856,0.00027397,2]
[393941900,1763118648283,-1582.29,0.000274,2]
[393941901,1763118648294,-160.0,0.000275,7]
[393941902,1763118648303,-300.650615,0.00027607,2]
[393941903,1763118648312,-367.0,0.00027616,14]
[393941904,1763118648321,-400.38245665,0.000278,30]
[393941905,1763118648333,-4068.89,0.000278,7]
[393941906,1763118648345,-1152.0,0.00027951,2]
[393941907,1763118648357,-400.38245665,0.00028,3]
[393941908,1763118648369,-400.38245665,0.00028,10]
[393941909,1763118648380,-213.460518,0.00028152,60]
[393941910,1763118648391,-10331.76648753,0.00028182,2]
[393941911,1763118648400,-300.650615,0.00028213,2]
[393941912,1763118648412,-151.0,0.00028215,7]
[393941913,1763118648423,-153.12200193,0.00028215,7]
[393941914,1763118648434,-166.0,0.00028215,7]
[393941915,1763118648446,-166.0,0.00028215,7]
[393941916,1763118648457,-172.0,0.00028215,7]
[393941917,1763118648470,-1604.0,0.00028492,2]
[393941918,1763118648481,-7110.89888972,0.00028518,2]
[393941919,1763118648491,-2000.0,0.00028632,7]
[393941920,1763118648503,-384.97956902,0.00028815,2]
[393941921,1763118648515,-300.650615,0.0002882,2]
[393941922,1763118648527,-324.29132987,0.00028854,2]
[393941923,1763118648541,-367.0,0.00028997,14]
[393941924,1763118648552,-274.91,0.00029,14]
[393941925,1763118648563,-166.390881,0.000294,10]
[393941926,1763118648574,-300.650615,0.00029427,2]
[393941927,1763118648586,-907.0,0.00029455,2]
[393941928,1763118648597,-204.53720204,0.00029507,14]
[393941929,1763118648608,-904.0,0.00029616,2]
[393941930,1763118648620,-904.0,0.00029649,2]
[393941931,1763118648633,-1000.0,0.0002972,30]
[393941932,1763118648649,-244.0,0.0002972,30]
[393941933,1763118648660,-904.0,0.00029737,2]
[393941934,1763118648671,-1582.29,0.000298,2]
[393941935,1763118648681,-699.398184,0.00029845,2]
[393941936,1763118648690,-250.0,0.0003,7]
[393941937,1763118648701,-169993.91111997,0.0003,30]
[393941938,1763118648712,-1149.73,0.0003,10]
[393941939,1763118648721,-300.650615,0.0003,10]
[393941940,1763118648732,-324.29132987,0.00030069,56]
[393941941,1763118648744,-10331.76648753,0.00030239,2]
[393941942,1763118648756,-905.0,0.00030247,2]
[393941943,1763118648768,-904.0,0.00030266,7]
[393941944,1763118648779,-629.0,0.00030339,2]
[393941945,1763118648790,-987.0,0.00030339,2]
[393941946,1763118648803,-2161.0,0.00030339,2]
[393941947,1763118648817,-300.650615,0.00030375,10]
[393941948,1763118648828,-1613.0,0.00030439,2]
[393941949,1763118648843,-904.0,0.00030511,2]
[393941950,1763118648856,-904.0,0.00030615,7]
[393941951,1763118648867,-300.650615,0.0003075,10]
[393941952,1763118648877,-4068.89,0.000308,7]
[393941953,1763118648889,-421.45131767,0.00030815,2]
[393941954,1763118648899,-904.0,0.00030889,2]
[393941955,1763118648909,-904.0,0.00030911,2]
[393941956,1763118648919,-904.0,0.00030977,2]
[393941957,1763118648930,-904.0,0.0003105,7]
[393941958,1763118648942,-150.0,0.00031067,2]
[393941959,1763118648954,-250.0,0.00031067,2]
[393941960,1763118648965,-265.446,0.00031067,2]
[393941961,1763118648977,-904.0,0.0003109,2]
[393941962,1763118648987,-1160.9764545,0.0003112,2]
[393941963,1763118648996,-300.650615,0.00031125,10]
[393941964,1763118649007,-904.0,0.00031229,2]
[393941965,1763118649018,-904.0,0.00031237,7]
[393941966,1763118649028,-324.29132987,0.00031284,110]
[393941967,1763118649039,-904.0,0.00031382,7]
[393941968,1763118649051,-7110.89888972,0.00031392,2]
[393941969,1763118649062,-274.91,0.000314,14]
[393941970,1763118649072,-300.650615,0.000315,10]
[393941971,1763118649082,-213.460518,0.00031576,60]
[393941972,1763118649092,-904.0,0.00031597,2]
[393941973,1763118649102,-905.0,0.00031679,7]
[393941974,1763118649113,-179.0,0.00031699,14]
[393941975,1763118649124,-904.0,0.00031786,2]
[393941976,1763118649135,-200.65638726,0.00031799,10]
[393941977,1763118649145,-43775.84960005,0.000319,2]
[393941978,1763118649156,-1582.29,0.000319,2]
[393941979,1763118649167,-904.0,0.00031946,2]
[393941980,1763118649178,-904.0,0.00032197,2]
[393941981,1763118649189,-232.24,0.00032293,2]
[393941982,1763118649200,-904.0,0.0003232,2]
[393941983,1763118649210,-904.0,0.00032494,2]
[393941984,1763118649221,-1000.0,0.00032692,30]